bitfinex/quotes_BTCUSD_20250105
["timestamp","ask_amount","ask_price","bid_price","bid_amount"]
[1736098738514,1.09105262,97912.0,97911.0,0.00026962]
[1736098738814,1.06223901,97912.0,97911.0,0.00026962]
[1736098740027,1.15313916,97912.0,97911.0,0.00026962]
[1736098740175,1.15713916,97912.0,97911.0,0.00026962]
[1736098740377,1.16613916,97912.0,97911.0,0.00026962]
[1736098740608,0.72289022,97912.0,97911.0,0.07546962]
[1736098740820,0.71389022,97912.0,97911.0,0.07546962]
[1736098741032,0.63199007,97912.0,97911.0,0.07546962]
[1736098741245,0.63199007,97912.0,97911.0,0.07517651]
[1736098741455,0.77299007,97912.0,97911.0,0.07517651]
[1736098741667,0.78199007,97912.0,97911.0,0.07517651]
[1736098741884,0.63199007,97912.0,97911.0,0.12477651]
[1736098742098,0.62299007,97912.0,97911.0,0.12477651]
[1736098742302,0.46500375,97912.0,97911.0,0.12477651]
[1736098742725,0.46900375,97912.0,97911.0,0.12477651]
[1736098742948,0.34090375,97912.0,97911.0,0.12477651]
[1736098743173,0.33690375,97912.0,97911.0,0.12477651]
[1736098743391,0.34590375,97912.0,97911.0,0.12477651]
[1736098743599,0.34590375,97912.0,97911.0,0.12577651]
[1736098744037,0.33690375,97912.0,97911.0,0.12477651]
[1736098744271,0.33690375,97912.0,97911.0,0.12777651]
[1736098745111,0.33790375,97912.0,97911.0,0.12777651]
[1736098745772,0.33790375,97912.0,97911.0,0.13189651]
[1736098745981,0.25980375,97912.0,97911.0,0.13489651]
[1736098746202,0.20980375,97912.0,97911.0,0.13489651]
[1736098746648,0.20880375,97912.0,97911.0,0.13189651]
[1736098747106,0.20880375,97912.0,97911.0,0.13498201]
[1736098747544,0.20897475,97912.0,97911.0,0.13198201]
[1736098747695,0.20997475,97912.0,97911.0,0.13198201]
[1736098748368,0.20897475,97912.0,97911.0,0.13198201]
[1736098748879,0.20997475,97912.0,97911.0,0.13498201]
[1736098749423,0.20897475,97912.0,97911.0,0.13198201]
[1736098749858,0.20997475,97912.0,97911.0,0.13498201]
[1736098750054,0.21097475,97912.0,97911.0,0.13498201]
[1736098750265,0.20897475,97912.0,97911.0,0.13198201]
[1736098750669,0.21097475,97912.0,97911.0,0.13498201]
[1736098750883,0.20997475,97912.0,97911.0,0.13498201]
[1736098751318,0.21097475,97912.0,97911.0,0.13498201]
[1736098751532,0.20997475,97912.0,97911.0,0.13498201]
[1736098752055,0.21097475,97912.0,97911.0,0.13498201]
[1736098752396,0.21097475,97912.0,97911.0,0.13198201]
[1736098752600,0.20997475,97912.0,97911.0,0.13198201]
[1736098752804,0.21097475,97912.0,97911.0,0.13498201]
[1736098753492,0.20997475,97912.0,97911.0,0.13198201]
[1736098753694,0.21097475,97912.0,97911.0,0.13498201]
[1736098759676,0.21097475,97912.0,97911.0,0.12786201]
[1736098759840,0.21097475,97912.0,97911.0,0.13498201]
[1736098760734,0.21097475,97912.0,97911.0,0.12786201]
[1736098760951,0.21097475,97912.0,97911.0,0.13498201]
[1736098761587,0.206051,97912.0,97911.0,0.08538201]
[1736098762114,0.21077059,97912.0,97911.0,0.08538201]
[1736098763103,0.21077059,97912.0,97911.0,0.07826201]
[1736098763954,0.20977059,97912.0,97911.0,0.07526201]
[1736098764154,0.20877059,97912.0,97911.0,0.07826201]
[1736098764506,0.20877059,97912.0,97911.0,0.08126201]
[1736098766007,0.20877059,97912.0,97911.0,0.07826201]
[1736098766438,0.20877059,97912.0,97911.0,0.08126201]
[1736098766844,0.20877059,97912.0,97911.0,0.07526201]
[1736098767228,0.20977059,97912.0,97911.0,0.07926201]
[1736098767408,0.20977059,97912.0,97911.0,0.07826201]
[1736098767561,0.20977059,97912.0,97911.0,0.08126201]
[1736098767769,0.20877059,97912.0,97911.0,0.07826201]
[1736098768381,0.20877059,97912.0,97911.0,0.07526201]
[1736098768639,0.20877059,97912.0,97911.0,0.07826201]
[1736098768840,0.20877059,97912.0,97911.0,0.08126201]
[1736098769580,0.20877059,97912.0,97911.0,0.07826201]
[1736098769782,0.20877059,97912.0,97911.0,0.08126201]
[1736098770205,0.20877059,97912.0,97911.0,0.07526201]
[1736098770409,0.20877059,97912.0,97911.0,0.07726201]
[1736098770618,0.20877059,97912.0,97911.0,0.08026201]
[1736098770774,0.20877059,97912.0,97911.0,0.07826201]
[1736098770970,0.20877059,97912.0,97911.0,0.08026201]
[1736098771187,0.20877059,97912.0,97911.0,0.07726201]
[1736098771365,0.20877059,97912.0,97911.0,0.07526201]
[1736098771576,0.20977059,97912.0,97911.0,0.07926201]
[1736098772468,0.20977059,97912.0,97911.0,0.0112455]
[1736098772655,0.20977059,97912.0,97911.0,0.0040855]
[1736098772855,0.20977059,97912.0,97911.0,0.0070855]
[1736098773063,0.20877059,97912.0,97911.0,0.0030855]
[1736098773740,0.20877059,97912.0,97911.0,0.0060855]
[1736098774088,0.20877059,97912.0,97911.0,0.0030855]
[1736098774288,0.20877059,97912.0,97911.0,8.55e-05]
[1736098774523,0.20877059,97912.0,97911.0,0.0050855]
[1736098775935,0.20877059,97912.0,97911.0,0.0020855]
[1736098776154,0.20877059,97912.0,97911.0,8.55e-05]
[1736098776365,0.204051,97912.0,97911.0,0.0020855]
[1736098776527,0.2087731,97912.0,97911.0,0.0030855]
[1736098776950,0.2087731,97912.0,97911.0,0.1251855]
[1736098777339,0.2087731,97912.0,97911.0,0.1261855]
[1736098777679,0.2087731,97912.0,97911.0,0.1281855]
[1736098777898,0.2087731,97912.0,97911.0,0.1241855]
[1736098778586,0.2087731,97912.0,97911.0,0.1313455]
[1736098779196,0.2087731,97912.0,97911.0,0.1363455]
[1736098779556,0.31275942,97912.0,97911.0,0.0050855]
[1736098780517,0.31275942,97912.0,97911.0,8.55e-05]
[1736098780822,0.49859742,97912.0,97911.0,8.55e-05]
[1736098781037,0.49859742,97912.0,97911.0,0.0010855]
[1736098782198,0.49859742,97912.0,97911.0,8.55e-05]
[1736098782407,0.50159742,97912.0,97911.0,8.55e-05]
[1736098782602,0.32361957,97912.0,97911.0,8.55e-05]
[1736098782815,0.31275942,97912.0,97911.0,8.55e-05]
[1736098783045,0.31575942,97912.0,97911.0,8.55e-05]
[1736098783253,0.31275942,97912.0,97911.0,8.55e-05]
[1736098783691,0.31575942,97912.0,97911.0,8.55e-05]
[1736098784302,0.31575942,97912.0,97911.0,0.0010855]
[1736098788830,0.2117731,97912.0,97911.0,0.0010855]
[1736098793554,0.2117731,97912.0,97911.0,0.0072455]
[1736098793853,0.204051,97912.0,97911.0,0.0102455]
[1736098794264,0.20876945,97912.0,97911.0,0.0102455]
[1736098794461,0.20876945,97912.0,97911.0,0.0072455]
[1736098794661,0.20876945,97912.0,97911.0,8.55e-05]
[1736098794892,0.20876945,97912.0,97911.0,0.0072455]
[1736098795310,0.20876945,97912.0,97911.0,0.0102455]
[1736098796150,0.20876945,97912.0,97911.0,0.0132455]
[1736098802053,0.20876945,97912.0,97911.0,0.0060855]
[1736098802259,0.20876945,97912.0,97911.0,0.0132055]
[1736098803992,0.20876945,97912.0,97911.0,0.0060855]
[1736098805095,0.20876945,97912.0,97911.0,0.0030855]
[1736098805316,0.28946945,97912.0,97911.0,0.0030855]
[1736098805503,0.28946945,97912.0,97911.0,8.55e-05]
[1736098805638,0.28946945,97912.0,97911.0,0.0030855]
[1736098806275,0.28946945,97912.0,97911.0,8.55e-05]
[1736098806487,0.28946945,97912.0,97911.0,0.0010855]
[1736098806712,0.28946945,97912.0,97911.0,0.0020855]
[1736098807807,0.57729377,97912.0,97911.0,0.0010855]
[1736098808211,0.57729377,97912.0,97911.0,8.55e-05]
[1736098808473,0.57729377,97912.0,97911.0,0.0010855]
[1736098808823,0.57729377,97912.0,97911.0,8.55e-05]
[1736098809268,0.57929377,97912.0,97911.0,8.55e-05]
[1736098809477,0.57729377,97912.0,97911.0,8.55e-05]
[1736098809866,0.57929377,97912.0,97911.0,0.0020855]
[1736098810071,0.57729377,97912.0,97911.0,0.0020855]
[1736098810280,0.57729377,97912.0,97911.0,8.55e-05]
[1736098810679,0.57729377,97912.0,97911.0,0.0010855]
[1736098811451,0.57929377,97912.0,97911.0,0.0010855]
[1736098812270,0.57729377,97912.0,97911.0,8.55e-05]
[1736098812755,0.58329377,97912.0,97911.0,8.55e-05]
[1736098812961,0.57829377,97912.0,97911.0,8.55e-05]
[1736098813160,0.57729377,97912.0,97911.0,8.55e-05]
[1736098813361,0.58229377,97912.0,97911.0,8.55e-05]
[1736098813624,0.58329377,97912.0,97911.0,8.55e-05]
[1736098820339,0.50259377,97912.0,97911.0,8.55e-05]
[1736098822317,0.21476945,97912.0,97911.0,8.55e-05]
[1736098822523,0.21476945,97912.0,97911.0,0.0809855]
[1736098822731,0.21476945,97912.0,97911.0,0.1269855]
[1736098823366,0.210051,97912.0,97911.0,0.1269855]
[1736098823581,0.209051,97912.0,97911.0,0.1269855]
[1736098823744,0.21376542,97912.0,97911.0,0.1269855]
[1736098823967,0.20876542,97912.0,97911.0,0.1269855]
[1736098824331,0.20976542,97912.0,97911.0,0.1269855]
[1736098824936,0.20976542,97912.0,97911.0,0.1279855]
[1736098825169,0.21076542,97912.0,97911.0,0.1319855]
[1736098825505,0.21076542,97912.0,97911.0,0.1309855]
[1736098825905,0.21076542,97912.0,97911.0,0.1349855]
[1736098826119,0.20876542,97912.0,97911.0,0.1309855]
[1736098826261,0.20876542,97912.0,97911.0,0.1269855]
[1736098826471,0.20876542,97912.0,97911.0,0.1309855]
[1736098827277,0.20976542,97912.0,97911.0,0.1421055]
[1736098831715,0.21109161,97912.0,97911.0,0.1421055]
[1736098832264,0.21109161,97912.0,97911.0,0.1381055]
[1736098832459,0.21109161,97912.0,97911.0,0.1421055]
[1736098833868,0.21009161,97912.0,97911.0,0.1381055]
[1736098834251,0.21109161,97912.0,97911.0,0.1421055]
[1736098835500,0.205051,97912.0,97911.0,0.1421055]
[1736098835691,0.205051,97912.0,97911.0,0.1349855]
[1736098835906,0.21110111,97912.0,97911.0,0.1421055]
[1736098836619,0.205051,97912.0,97911.0,0.1421055]
[1736098836840,0.21110015,97912.0,97911.0,0.1421055]
[1736098856323,0.21110015,97912.0,97911.0,0.17399058]
[1736098862624,0.21010015,97912.0,97911.0,0.16599058]
[1736098862800,0.21010015,97912.0,97911.0,0.16899058]
[1736098863400,0.21010015,97912.0,97911.0,0.16599058]
[1736098863742,0.21010015,97912.0,97911.0,0.16999058]
[1736098863951,0.21010015,97912.0,97911.0,0.17399058]
[1736098864148,0.21010015,97912.0,97911.0,0.16999058]
[1736098864554,0.21110015,97912.0,97911.0,0.17499058]
[1736098864754,0.204051,97912.0,97911.0,0.16599058]
[1736098864958,0.21010103,97912.0,97911.0,0.16599058]
[1736098865131,0.21010103,97912.0,97911.0,0.16899058]
[1736098865336,0.21010103,97912.0,97911.0,0.16599058]
[1736098865756,0.21010103,97912.0,97911.0,0.16699058]
[1736098865956,0.204051,97912.0,97911.0,0.16699058]
[1736098866304,0.21010103,97912.0,97911.0,0.17099058]
[1736098866715,0.21010103,97912.0,97911.0,0.16699058]
[1736098867056,0.21010103,97912.0,97911.0,0.16899058]
[1736098867576,0.21010103,97912.0,97911.0,0.16799058]
[1736098868052,0.204051,97912.0,97911.0,0.16799058]
[1736098868233,0.204051,97912.0,97911.0,0.16999058]
[1736098868777,0.204051,97912.0,97911.0,0.50900752]
[1736098870295,0.204051,97912.0,97911.0,0.94579164]
[1736098870423,0.204051,97912.0,97911.0,1.04579164]
[1736098870630,0.204051,97912.0,97911.0,1.16879164]
[1736098871003,0.17854462,97912.0,97911.0,1.16879164]
[1736098871210,0.09564298,97912.0,97911.0,1.16879164]
[1736098871414,0.05478898,97912.0,97911.0,1.16879164]
[1736098871616,0.05478898,97912.0,97911.0,0.98599384]
[1736098871832,0.05478898,97912.0,97911.0,1.26019054]
[1736098872046,0.13795222,97955.0,97930.0,0.2267]
[1736098872254,0.09135222,97955.0,97950.0,0.367533]
[1736098872457,0.00604971,97954.0,97952.0,0.183763]
[1736098873299,0.002,97955.0,97952.0,0.367526]
[1736098873481,0.00204924,97955.0,97952.0,0.367526]
[1736098873693,4.924e-05,97955.0,97952.0,0.367526]
[1736098873893,0.00304924,97955.0,97952.0,0.367526]
[1736098874136,4.924e-05,97955.0,97952.0,0.368526]
[1736098874548,4.924e-05,97955.0,97952.0,0.367526]
[1736098874954,0.0001708,97954.0,97952.0,0.368526]
[1736098876246,0.0001708,97954.0,97952.0,0.367526]
[1736098876483,0.0001708,97954.0,97952.0,0.368526]
[1736098877454,0.0001708,97954.0,97952.0,0.367526]
[1736098877580,0.0001708,97954.0,97952.0,0.375526]
[1736098882256,0.0001708,97954.0,97953.0,0.00704]
[1736098882645,0.0825708,97954.0,97953.0,0.00704]
[1736098882845,0.08864903,97954.0,97953.0,0.00704]
[1736098883403,0.08864903,97954.0,97953.0,0.01104]
[1736098884258,0.08864903,97954.0,97953.0,0.01604]
[1736098890417,0.0001708,97954.0,97953.0,0.01604]
[1736098905231,0.0001708,97954.0,97953.0,0.009]
[1736098905609,0.00625304,97954.0,97953.0,0.009]
[1736098906246,0.00625304,97954.0,97953.0,0.005]
[1736098906445,0.08675304,97954.0,97953.0,0.007]
[1736098906650,0.08675304,97954.0,97953.0,0.002]
[1736098906906,0.08675304,97954.0,97953.0,0.005]
[1736098907082,0.08675304,97954.0,97953.0,0.003]
[1736098907279,0.08675304,97954.0,97953.0,0.005]
[1736098907661,0.08675304,97954.0,97953.0,0.002]
[1736098908066,0.08675304,97954.0,97953.0,0.005]
[1736098908755,0.08675304,97954.0,97953.0,0.003]
[1736098908935,0.08675304,97954.0,97953.0,0.005]
[1736098912129,0.00625304,97954.0,97953.0,0.005]
[1736098938388,0.19003936,97954.0,97953.0,0.005]
[1736098938587,0.24065915,97954.0,97953.0,0.005]
[1736098938793,0.23963936,97954.0,97953.0,0.005]
[1736098939222,0.23963936,97954.0,97953.0,0.003]
[1736098939637,0.23963936,97954.0,97953.0,0.004]
[1736098940374,0.23963936,97954.0,97953.0,0.003]
[1736098940569,0.23963936,97954.0,97953.0,0.001]
[1736098941004,0.24163936,97954.0,97953.0,0.001]
[1736098941225,0.23963936,97954.0,97953.0,0.001]
[1736098942142,0.24163936,97954.0,97953.0,0.001]
[1736098942366,0.183777,97945.0,97936.0,0.007]
[1736098942568,0.00101979,97944.0,97936.0,0.007]
[1736098942747,0.00709678,97944.0,97931.0,0.09151446]
[1736098942967,0.00709678,97944.0,97934.0,0.007]
[1736098943924,0.00709678,97944.0,97936.0,0.002]
[1736098944129,0.00709678,97944.0,97934.0,0.007]
[1736098944510,0.00709678,97944.0,97936.0,0.002]
[1736098945024,0.00809678,97944.0,97936.0,0.002]
[1736098945613,0.00809678,97944.0,97935.0,0.183795]
[1736098946707,0.00709678,97944.0,97935.0,0.183795]
[1736098947116,0.00607699,97944.0,97935.0,0.184795]
[1736098949747,0.01666209,97944.0,97935.0,0.184795]
[1736098949942,0.00607699,97944.0,97935.0,0.184795]
[1736098951080,0.18378,97943.0,97935.0,0.001]
[1736098951407,0.00607594,97942.0,97935.0,0.001]
[1736098951844,0.00607594,97942.0,97933.0,0.007]
[1736098952223,0.00607594,97942.0,97935.0,0.001]
[1736098952628,0.00607594,97942.0,97933.0,0.007]
[1736098953579,0.00607594,97942.0,97933.0,0.009]
[1736098955180,0.01024348,97944.0,97933.0,0.009]
[1736098955380,0.28776332,97945.0,97933.0,0.009]
[1736098955604,0.00607769,97943.0,97933.0,0.009]
[1736098955829,0.00607778,97944.0,97933.0,0.009]
[1736098956028,0.0060776,97942.0,97933.0,0.009]
[1736098956263,0.00607769,97943.0,97933.0,0.007]
[1736098956439,0.2982342,97945.0,97933.0,0.008]
[1736098956644,0.0060776,97942.0,97933.0,0.008]
[1736098956794,0.00607833,97944.0,97933.0,0.008]
[1736098956995,0.00607806,97941.0,97933.0,0.007]
[1736098957240,0.00607824,97943.0,97933.0,0.007]
[1736098957438,0.00607798,97940.0,97933.0,0.007]
[1736098957639,0.00624895,97942.0,97933.0,0.007]
[1736098957845,0.00607789,97939.0,97933.0,0.007]
[1736098958050,0.0001708,97942.0,97933.0,0.007]
[1736098958251,0.0060778,97938.0,97933.0,0.007]
[1736098958446,0.0001708,97942.0,97933.0,0.009]
[1736098958855,0.00607806,97941.0,97933.0,0.009]
[1736098959275,0.18986306,97941.0,97933.0,0.007]
[1736098959592,0.18986306,97941.0,97933.0,0.009]
[1736098960008,0.18986306,97941.0,97933.0,0.008]
[1736098960340,0.18986306,97941.0,97933.0,0.01]
[1736098961244,0.183785,97940.0,97933.0,0.01]
[1736098961482,0.00607806,97941.0,97933.0,0.003]
[1736098961483,0.183796,97935.0,97933.0,0.003]
[1736098961718,0.10500611,97934.0,97933.0,0.003]
[1736098961925,0.18907848,97934.0,97933.0,0.003]
[1736098962104,0.18907848,97934.0,97933.0,0.001]
[1736098962555,0.18907848,97934.0,97922.0,0.09151446]
[1736098962677,0.078,97931.0,97922.0,0.09151446]
[1736098962903,0.11107929,97930.0,97912.0,0.0070854]
[1736098963230,0.26154164,97918.0,97912.0,0.0070854]
[1736098963756,0.00606796,97917.0,97912.0,0.0070854]
[1736098964718,0.183818,97923.0,97912.0,0.0070854]
[1736098964924,0.00606831,97916.0,97912.0,0.0070854]
[1736098965123,0.28780432,97923.0,97913.0,0.0791]
[1736098965482,0.00606839,97922.0,97913.0,0.0791]
[1736098966469,0.00213631,97922.0,97913.0,0.0791]
[1736098966679,0.00590447,97922.0,97913.0,0.0801]
[1736098966966,0.00790447,97922.0,97913.0,0.0801]
[1736098969691,0.00807527,97922.0,97913.0,0.0801]
[1736098972888,0.00807527,97922.0,97913.0,0.001]
[1736098976089,0.183821,97921.0,97913.0,0.001]
[1736098976526,0.00589809,97920.0,97913.0,0.001]
[1736098978027,0.00589809,97920.0,97912.0,0.0070854]
[1736098978425,0.00589809,97920.0,97913.0,0.001]
[1736098978826,0.00589809,97920.0,97912.0,0.0070854]
[1736098979387,0.00689733,97920.0,97912.0,0.0080854]
[1736098979579,0.00589733,97920.0,97912.0,0.0080854]
[1736098979906,0.00689733,97920.0,97912.0,0.0080854]
[1736098980735,0.00589733,97920.0,97912.0,0.0080854]
[1736098981067,0.183825,97919.0,97912.0,0.0080854]
[1736098981396,0.00566317,97918.0,97912.0,0.0070854]
[1736098981606,0.00566317,97918.0,97913.0,8.54e-05]
[1736098984481,0.00566317,97918.0,97913.0,0.0010854]
[1736098984856,0.00566317,97918.0,97913.0,8.54e-05]
[1736098985043,0.0001708,97922.0,97913.0,8.54e-05]
[1736098985240,0.00566326,97917.0,97913.0,0.0010854]
[1736098985611,0.00566326,97916.0,97913.0,0.0010854]
[1736098985780,0.183821,97921.0,97913.0,0.0010854]
[1736098985995,0.00566308,97920.0,97913.0,8.54e-05]
[1736098986203,0.00566308,97920.0,97913.0,0.0010854]
[1736098987666,0.00566308,97920.0,97913.0,8.54e-05]
[1736098988319,0.00502849,97920.0,97913.0,8.54e-05]
[1736098988499,0.00502849,97920.0,97913.0,0.0010854]
[1736098989012,0.00602849,97920.0,97913.0,8.54e-05]
[1736098989434,0.00602849,97920.0,97913.0,0.0010854]
[1736098992384,0.00602849,97920.0,97913.0,8.54e-05]
[1736098992675,0.00502849,97920.0,97913.0,0.0010854]
[1736098993096,0.0001708,97922.0,97913.0,0.0010854]
[1736098993324,0.00547831,97919.0,97913.0,0.0010854]
[1736098993477,0.001,97920.0,97913.0,0.0010854]
[1736098993683,0.00547831,97918.0,97913.0,0.0010854]
[1736098993881,0.001,97920.0,97913.0,0.0010854]
[1736098994082,0.00547831,97917.0,97913.0,8.54e-05]
[1736098994406,0.0011708,97920.0,97913.0,0.0010854]
[1736098994538,0.00547831,97916.0,97913.0,0.0010854]
[1736098994739,0.0011708,97920.0,97913.0,0.0010854]
[1736098995001,0.00547831,97919.0,97913.0,8.54e-05]
[1736098995210,0.00547831,97919.0,97913.0,0.0010854]
[1736098995407,0.00647831,97919.0,97913.0,0.0010854]
[1736098995679,0.00547831,97919.0,97913.0,0.0080454]
[1736098995988,0.00547831,97919.0,97913.0,0.0070454]
[1736098996713,0.00647831,97919.0,97913.0,0.0070454]
[1736098997431,0.00647831,97919.0,97913.0,0.0080454]
[1736098998139,0.00547831,97919.0,97913.0,0.0070454]
[1736098998339,0.00547831,97919.0,97913.0,0.0080454]
[1736098998558,0.00647831,97919.0,97913.0,0.0080454]
[1736098998753,0.00547831,97919.0,97913.0,0.0080454]
[1736098998963,0.00547831,97919.0,97913.0,0.0070454]
[1736098999377,0.00547831,97919.0,97913.0,0.0080454]
[1736098999567,0.00647831,97919.0,97913.0,0.0080454]
[1736098999921,0.00547831,97919.0,97913.0,0.0080454]
[1736099000134,0.00647831,97919.0,97913.0,0.0080454]
[1736099001224,0.00647831,97919.0,97913.0,0.0070454]
[1736099001428,0.00547831,97919.0,97913.0,0.0080454]
[1736099001736,0.00647831,97919.0,97913.0,0.0080454]
[1736099001935,0.00647831,97919.0,97913.0,0.0070454]
[1736099002278,0.00647831,97919.0,97913.0,0.0080454]
[1736099002478,0.00547831,97919.0,97913.0,0.0080454]
[1736099002710,0.00547831,97919.0,97913.0,0.0070454]
[1736099003145,0.00547831,97919.0,97913.0,0.0080454]
[1736099006306,0.18930531,97919.0,97913.0,0.0080454]
[1736099011166,0.00547831,97919.0,97913.0,0.0080454]
[1736099016134,0.00547831,97919.0,97913.0,0.0010854]
[1736099020969,0.00547831,97919.0,97913.0,0.0080054]
[1736099023100,0.18930431,97919.0,97913.0,0.0080054]
[1736099027193,0.00547831,97919.0,97913.0,0.0080054]
[1736099035680,0.00547831,97919.0,97914.0,0.0799]
[1736099038473,0.00547831,97919.0,97915.0,0.183832]
[1736099038688,0.0001708,97920.0,97915.0,0.231732]
[1736099038848,0.0001708,97920.0,97916.0,0.03192369]
[1736099039065,0.0001708,97920.0,97917.0,0.183829]
[1736099040051,0.0001708,97920.0,97919.0,0.09151446]
[1736099042074,0.0001708,97920.0,97919.0,0.09451446]
[1736099042480,0.0001708,97920.0,97919.0,0.007]
[1736099045621,0.0001708,97920.0,97919.0,0.01392]
[1736099046220,0.0001708,97920.0,97919.0,0.00992]
[1736099046509,0.0001708,97920.0,97919.0,0.01092]
[1736099046939,0.0001708,97920.0,97919.0,0.00992]
[1736099047595,0.0001708,97920.0,97919.0,0.00692]
[1736099048038,0.0001708,97920.0,97919.0,0.00892]
[1736099048457,0.0001708,97920.0,97919.0,0.00692]
[1736099048869,0.0001708,97920.0,97919.0,0.01092]
[1736099049295,0.0001708,97920.0,97919.0,0.00892]
[1736099049503,0.0001708,97920.0,97919.0,0.01092]
[1736099050028,0.0001708,97920.0,97919.0,0.00892]
[1736099050258,0.0001708,97920.0,97919.0,0.01192]
[1736099051066,0.0001708,97920.0,97919.0,0.00992]
[1736099051453,0.0001708,97920.0,97919.0,0.01192]
[1736099053657,0.0001708,97920.0,97919.0,0.0120054]
[1736099060873,0.0001708,97920.0,97919.0,0.0050854]
[1736099061113,0.0001708,97920.0,97919.0,0.0120054]
[1736099070918,0.0001708,97920.0,97919.0,0.0050854]
[1736099070919,0.23365712,97920.0,97919.0,0.0050854]
[1736099071121,0.44928348,97920.0,97919.0,0.0050854]
[1736099071333,0.49930933,97920.0,97919.0,0.0050854]
[1736099071538,0.51971829,97920.0,97919.0,0.0050854]
[1736099071744,0.51971829,97920.0,97919.0,0.0030854]
[1736099072381,0.51971829,97920.0,97919.0,8.54e-05]
[1736099072817,0.52271829,97920.0,97919.0,8.54e-05]
[1736099073886,0.86917393,97920.0,97919.0,0.0010854]
[1736099074086,0.86617393,97920.0,97919.0,8.54e-05]
[1736099074308,0.87017393,97920.0,97919.0,8.54e-05]
[1736099075008,0.86617393,97920.0,97919.0,8.54e-05]
[1736099075234,0.86917393,97920.0,97919.0,8.54e-05]
[1736099075565,0.87817393,97920.0,97919.0,0.0010854]
[1736099075913,0.86017393,97920.0,97919.0,8.54e-05]
[1736099076183,0.86917393,97920.0,97919.0,0.0010854]
[1736099076356,0.86917393,97920.0,97919.0,8.54e-05]
[1736099076710,0.87817393,97920.0,97919.0,0.0010854]
[1736099076916,0.86917393,97920.0,97919.0,8.54e-05]
[1736099077152,0.86617393,97920.0,97919.0,8.54e-05]
[1736099077603,0.86917393,97920.0,97919.0,8.54e-05]
[1736099077914,0.87517393,97920.0,97919.0,0.0010854]
[1736099078304,0.87817393,97920.0,97919.0,0.0010854]
[1736099079713,0.86017393,97920.0,97919.0,8.54e-05]
[1736099079975,0.86917393,97920.0,97919.0,0.0010854]
[1736099080332,0.85717393,97920.0,97919.0,8.54e-05]
[1736099080706,1.04871928,97920.0,97919.0,0.0010854]
[1736099080911,1.04271928,97920.0,97919.0,8.54e-05]
[1736099081195,1.04871928,97920.0,97919.0,0.0010854]
[1736099081579,1.03971928,97920.0,97919.0,8.54e-05]
[1736099081797,1.04271928,97920.0,97919.0,8.54e-05]
[1736099082062,0.52271829,97920.0,97919.0,8.54e-05]
[1736099082262,0.51971829,97920.0,97919.0,8.54e-05]
[1736099082900,0.52871829,97920.0,97919.0,0.0010854]
[1736099083296,0.6565433,97920.0,97919.0,8.54e-05]
[1736099083708,0.6685433,97920.0,97919.0,0.0010854]
[1736099083937,0.6595433,97920.0,97919.0,8.54e-05]
[1736099084147,0.6565433,97920.0,97919.0,8.54e-05]
[1736099084364,0.6685433,97920.0,97919.0,0.0010854]
[1736099084751,0.53171829,97920.0,97919.0,0.0010854]
[1736099087079,0.62289742,97920.0,97919.0,0.0010854]
[1736099088470,0.53171829,97920.0,97919.0,0.0010854]
[1736099089112,0.43171829,97920.0,97919.0,0.0010854]
[1736099089312,0.13180933,97920.0,97919.0,0.0010854]
[1736099089964,0.12280933,97920.0,97919.0,8.54e-05]
[1736099090179,0.11980933,97920.0,97919.0,8.54e-05]
[1736099090557,0.12880933,97920.0,97919.0,0.0010854]
[1736099090760,0.13180933,97920.0,97919.0,0.0010854]
[1736099090964,0.12280933,97920.0,97919.0,8.54e-05]
[1736099091169,0.12680933,97920.0,97919.0,0.0010854]
[1736099091645,0.12880933,97920.0,97919.0,0.0010854]
[1736099092016,0.02482301,97920.0,97919.0,0.0010854]
[1736099097644,0.01465087,97920.0,97919.0,0.0010854]
[1736099097848,0.01265087,97920.0,97919.0,0.0010854]
[1736099098046,0.00565087,97920.0,97919.0,8.54e-05]
[1736099098251,0.01165087,97920.0,97919.0,0.0010854]
[1736099098697,0.0061708,97920.0,97919.0,0.0838854]
[1736099099224,0.0081708,97920.0,97919.0,0.0838854]
[1736099099634,0.0021708,97920.0,97919.0,0.0828854]
[1736099100389,0.0021708,97920.0,97919.0,0.0838854]
[1736099101718,0.0021708,97920.0,97919.0,0.0010854]
[1736099102336,0.00763283,97920.0,97919.0,0.0010854]
[1736099102553,0.11161915,97920.0,97919.0,0.0010854]
[1736099103901,0.62223915,97920.0,97919.0,0.0010854]
[1736099104949,0.69813915,97920.0,97919.0,0.0010854]
[1736099108237,0.7556317,97920.0,97919.0,0.0010854]
[1736099108487,0.69813915,97920.0,97919.0,0.0010854]
[1736099111890,0.62223915,97920.0,97919.0,0.0010854]
[1736099113098,0.85433915,97920.0,97919.0,0.0010854]
[1736099114425,0.95433915,97920.0,97919.0,0.0010854]
[1736099115408,1.09116416,97920.0,97919.0,0.0010854]
[1736099115810,1.13996416,97920.0,97919.0,0.0010854]
[1736099116008,1.24395048,97920.0,97919.0,0.0010854]
[1736099116978,1.62702258,97920.0,97919.0,0.0010854]
[1736099117511,1.64607188,97920.0,97919.0,0.0010854]
[1736099117921,1.54208556,97920.0,97919.0,0.0010854]
[1736099118198,1.35954021,97920.0,97919.0,0.0010854]
[1736099119467,1.38254021,97920.0,97919.0,0.0010854]
[1736099119683,0.515934,97914.0,97913.0,8.54e-05]
[1736099119892,0.61992032,97914.0,97913.0,8.54e-05]
[1736099120107,1.13599867,97914.0,97913.0,8.54e-05]
[1736099120319,1.23998499,97914.0,97913.0,8.54e-05]
[1736099120524,1.25903429,97914.0,97913.0,8.54e-05]
[1736099121133,1.59638605,97914.0,97913.0,0.0010854]
[1736099121369,1.61938605,97914.0,97913.0,0.0010854]
[1736099122192,1.61938605,97914.0,97913.0,0.0020854]
[1736099122370,1.63982928,97914.0,97913.0,0.0020854]
[1736099122589,1.62077998,97914.0,97913.0,0.0010854]
[1736099122986,1.64781575,97914.0,97913.0,0.0020854]
[1736099123195,1.63981575,97914.0,97913.0,8.54e-05]
[1736099124202,1.64781575,97914.0,97913.0,0.0010854]
[1736099124632,1.66029485,97914.0,97913.0,0.0010854]
[1736099125084,1.76029485,97914.0,97913.0,0.0010854]
[1736099126117,0.1,97903.0,97887.0,8.54e-05]
[1736099126330,1.04846132,97903.0,97902.0,0.00013472]
[1736099126543,1.15505551,97903.0,97902.0,0.00013472]
[1736099127311,1.49240727,97903.0,97902.0,0.00013472]
[1736099127744,1.49540727,97903.0,97902.0,0.00013472]
[1736099128220,1.59939359,97903.0,97902.0,0.00013472]
[1736099128546,1.67807305,97903.0,97902.0,0.00013472]
[1736099128835,1.67907305,97903.0,97902.0,0.00013472]
[1736099129397,1.67807305,97903.0,97902.0,0.00013472]
[1736099129763,1.67607305,97903.0,97902.0,0.00013472]
[1736099129953,1.29803833,97903.0,97902.0,0.00013472]
[1736099130120,1.29303833,97903.0,97902.0,0.00013472]
[1736099130541,1.30838918,97903.0,97902.0,0.00013472]
[1736099130921,1.27539268,97903.0,97902.0,0.00013472]
[1736099135443,1.61222678,97903.0,97902.0,0.00013472]